{"text_format":"1","workbook":"xlsx","n_sheets":1,"sheets":["تراكيب"],"not_rendered":{"charts":0,"images":0,"macros":1,"external_links":0,"defined_names":1,"comments":0,"pivot_tables":0},"unopened":[],"bounds":{"document_bytes":16777216,"sheet_cells":100000,"rows_first":2000,"rows_last":500,"rows_between":2000,"halvings":0,"cell_chars":16384,"cell_head_chars":4096},"cells_cut":0,"cells_raw":0,"read":"whole","date_system":"1900"}

{"sheet":"تراكيب","index":0,"n_rows":50,"n_cols":108,"rows_kept":50,"cut":false,"hidden":false,"merged":[[52,16,52,19],[8,23,8,26],[8,28,8,31],[8,33,8,36],[8,38,8,41],[48,20,48,21],[49,20,49,21],[48,17,48,19],[49,17,49,19],[0,17,0,20],[1,18,1,20],[2,18,2,20],[5,1,5,16],[6,1,6,4],[6,5,6,8],[6,9,6,12],[6,13,6,16]]}
[null,null,null,null,null,null,null,null,null,null,null,null,null,null,null,null,null,"مدرسة ",null,null,null,null,null,null,null,null,null,null,null,null,null,null,null,null,null,null,null,null,null,null,null,null,null,null,null,null,null,null,null,null,null,null,null,null,null,null,null,null,null,null,null,null,null,null,null,null,null,null,null,null,null,null,null,null,null,null,null,null,null,null,null,null,null,null,null,null,null,null,null,null,null,null,null,null,null,null,null,null,null,null,null,null,null,null,null,null,null,"x"]
[null,null,null,null,null,null,null,null,null,null,null,null,null,null,null,null,null,null,"المستوى الخامس ابتدائي"]
[null,null,null,null,null,null,null,null,null,null,null,null,null,null,null,null,null,null,"المديرية "]
[null,null,null,null,null,null,null,null,null,null,null,null,null,null,null,null,"نقط المراقبة المستمرة  1 دورة 2"]
[]
["ملاحظات","التراكيب",null,null,null,null,null,null,null,null,null,null,null,null,null,null,null,null,"المواد","     ","رت"]
[null,"المستثنى بالا",null,null,null,"التمييز",null,null,null,"جمع المذكر و المؤنث السالمين",null,null,null,"الحال",null,null,null,"النقطة",null,"اسماء التلاميذ"]
[null,0,1,2,3,0,1,2,3,0,1,2,3,0,1,2,3]
[null,null,null,null,"x",null,null,null,"x",null,null,"x",null,null,null,"x","x",null,null,"صفاء",1,null,null,"3 = متمكن",null,null,null,null,"2 =  متمكن نسبيا",null,null,null,null,"1 = في طور التمكن",null,null,null,null,"0 = غير متمكن "]
[null,"x",null,null,null,"x",null,null,null,"x",null,null,null,"x",null,null,null,null,null,"أيوب ",2,null,null,"المستثنى","التمييز","ج المذكر و المؤنث السالمين","الحال",null,"المستثنى","التمييز","ج المذكر و المؤنث السالمين","الحال",null,"المستثنى","التمييز","ج المذكر و المؤنث السالمين","الحال",null,"المستثنى","التمييز","ج المذكر و المؤنث السالمين","الحال"]
[null,"x",null,null,null,"x",null,null,null,"x",null,null,null,"x",null,null,null,null,null,"آية ",3,null,null,"صفاء","صفاء","","صفاء",null,"","","صفاء","صفاء",null,"","","","",null,"","","",""]
[null,"x",null,null,null,"x",null,null,null,"x",null,null,null,"x",null,null,null,null,null," بلال",4,null,null,"","","","",null,"","","","",null,"","","","",null,"أيوب ","أيوب ","أيوب ","أيوب "]
[null,null,null,null,"x",null,null,"x",null,null,null,"x",null,null,null,"x",null,null,null," معاد",5,null,null,"","","","",null,"","","","",null,"","","","",null,"آية ","آية ","آية ","آية "]
[null,null,null,null,"x",null,null,null,"x",null,null,null,"x",null,null,null,"x",null,null,"كوثر",6,null,null,"","","","",null,"","","","",null,"","","","",null," بلال"," بلال"," بلال"," بلال"]
[null,null,null,null,"x",null,null,null,"x",null,null,null,"x",null,null,"x",null,null,null," عمر",7,null,null," معاد","","","",null,""," معاد"," معاد"," معاد",null,"","","","",null,"","","",""]
[null,null,null,"x",null,null,null,"x",null,null,"x",null,null,null,"x",null,null,null,null," زهرة",8,null," ","كوثر","كوثر","كوثر","كوثر",null,"","","","",null,"","","","",null,"","","",""]
[null,"x",null,null,null,null,"x",null,null,"x",null,null,null,"x",null,null,null,null,null," محمد",9,null,null," عمر"," عمر"," عمر","",null,"","",""," عمر",null,"","","","",null,"","","",""]
[null,null,null,null,"x",null,null,null,"x",null,null,null,"x",null,null,null,"x",null,null,"أكرم",10,null,null,"","","","",null," زهرة"," زهرة","","",null,"",""," زهرة"," زهرة",null,"","","",""]
[null,null,null,null,"x",null,null,"x",null,null,null,null,"x",null,null,null,"x",null,null," آية",11,null,null,"","","","",null,"","","","",null,""," محمد","","",null," محمد",""," محمد"," محمد"]
[null,null,null,"x",null,null,"x",null,null,null,"x",null,null,null,"x",null,null,null,null," رضا",12,null,null,"أكرم","أكرم","أكرم","أكرم",null,"","","","",null,"","","","",null,"","","",""]
[null,null,null,null,"x",null,null,null,"x",null,"x",null,null,null,null,null,"x",null,null," إحسان",13,null,null," آية",""," آية"," آية",null,""," آية","","",null,"","","","",null,"","","",""]
[null,null,null,"x",null,null,null,null,"x","x",null,null,null,null,"x",null,null,null,null,"وصال",14,null,null,"","","","",null," رضا","","","",null,""," رضا"," رضا"," رضا",null,"","","",""]
[null,null,null,null,"x",null,"x",null,null,null,null,null,"x",null,null,null,"x",null,null," موسى",15,null,null," إحسان"," إحسان",""," إحسان",null,"","","","",null,"",""," إحسان","",null,"","","",""]
[null,null,null,null,"x",null,null,"x",null,null,"x",null,null,null,"x",null,null,null,null," ملاك",16,null,null,"","وصال","","",null,"وصال","","","",null,"","","","وصال",null,"","","وصال",""]
[null,"x",null,null,null,"x",null,null,null,"x",null,null,null,"x",null,null,null,null,null," سومية",17,null,null," موسى",""," موسى"," موسى",null,"","","","",null,""," موسى","","",null,"","","",""]
[null,null,null,null,"x",null,null,null,"x",null,"x",null,null,null,"x",null,null,null,null,"دعاء",18,null,null," ملاك","","","",null,""," ملاك","","",null,"",""," ملاك"," ملاك",null,"","","",""]
[null,null,null,null,"x",null,null,"x",null,null,"x",null,null,null,null,null,"x",null,null," إكرام",19,null,null,"","","","",null,"","","","",null,"","","","",null," سومية"," سومية"," سومية"," سومية"]
[null,"x",null,null,null,null,"x",null,null,"x",null,null,null,null,"x",null,null,null,null,"رميساء",20,null,null,"دعاء","دعاء","","",null,"","","","",null,"","","دعاء","دعاء",null,"","","",""]
[null,null,null,null,"x",null,null,null,"x",null,null,null,"x",null,null,null,"x",null,null," أيوب",21,null,null," إكرام","",""," إكرام",null,""," إكرام","","",null,"",""," إكرام","",null,"","","",""]
[null,null,null,null,"x",null,"x",null,null,null,"x",null,null,null,"x",null,null,null,null," آية2",22,null,null,"","","","",null,"","","","",null,"","رميساء","","رميساء",null,"رميساء","","رميساء",""]
[null,null,null,null,"x",null,"x",null,null,null,null,"x",null,null,null,null,"x",null,null," مارية",23,null,null," أيوب"," أيوب"," أيوب"," أيوب",null,"","","","",null,"","","","",null,"","","",""]
[null,null,null,null,"x",null,null,"x",null,null,null,null,"x",null,null,"x",null,null,null,"خولة",24,null,null," آية2","","","",null,"","","","",null,""," آية2"," آية2"," آية2",null,"","","",""]
[null,null,null,null,"x",null,"x",null,null,null,null,"x",null,null,null,"x",null,null,null," خديجة",25,null,null," مارية","",""," مارية",null,"",""," مارية","",null,""," مارية","","",null,"","","",""]
[null,null,null,null,"x",null,null,"x",null,null,"x",null,null,null,"x",null,null,null,null,"محمد",26,null,null,"خولة","","خولة","",null,"","خولة","","خولة",null,"","","","",null,"","","",""]
[null,null,null,null,"x",null,"x",null,null,null,null,"x",null,null,null,null,"x",null,null,"جهاد",27,null,null," خديجة","","","",null,"",""," خديجة"," خديجة",null,""," خديجة","","",null,"","","",""]
[null,null,null,null,"x",null,"x",null,null,null,null,"x",null,null,null,null,"x",null,null,"فاطمة الزهراء",28,null,null,"محمد","","","",null,"","محمد","","",null,"","","محمد","محمد",null,"","","",""]
[null,"x",null,null,null,"x",null,null,null,"x",null,null,null,"x",null,null,null,null,null," خليل",29,null,null,"جهاد","","","جهاد",null,"","","جهاد","",null,"","جهاد","","",null,"","","",""]
[null,null,null,"x",null,"x",null,null,null,null,"x",null,null,null,null,"x",null,null,null," فاطمة الزهراء2",30,null,null,"فاطمة الزهراء","","","فاطمة الزهراء",null,"","","فاطمة الزهراء","",null,"","فاطمة الزهراء","","",null,"","","",""]
[null,"x",null,null,null,"x",null,null,null,"x",null,null,null,"x",null,null,null,null,null,"مروة ",31,null,null,"","","","",null,"","","","",null,"","","","",null," خليل"," خليل"," خليل"," خليل"]
[null,null,null,null,"x",null,null,null,"x",null,null,"x",null,null,"x",null,null,null,null,"أشرف",32,null,null,"","","","",null," فاطمة الزهراء2","",""," فاطمة الزهراء2",null,"",""," فاطمة الزهراء2","",null,""," فاطمة الزهراء2","",""]
[null,null,null,null,"x",null,null,null,"x",null,null,null,"x",null,null,null,"x",null,null," ريم",33,null,null,"","","","",null,"","","","",null,"","","","",null,"مروة ","مروة ","مروة ","مروة "]
[null,"x",null,null,null,"x",null,null,null,"x",null,null,null,"x",null,null,null,null,null," دنيا",34,null,null,"أشرف","أشرف","","",null,"","","أشرف","",null,"","","","أشرف",null,"","","",""]
[null,null,null,null,"x",null,null,null,"x",null,null,"x",null,null,"x",null,null,null,null," زياد",35,null,null," ريم"," ريم"," ريم"," ريم",null,"","","","",null,"","","","",null,"","","",""]
[null,null,null,null,"x",null,null,null,"x",null,null,null,"x",null,null,null,"x",null,null," خولة",36,null,null,"","","","",null,"","","","",null,"","","","",null," دنيا"," دنيا"," دنيا"," دنيا"]
[null,null,null,null,"x",null,null,"x",null,null,null,"x",null,null,null,null,"x",null,null," فرح",37,null,null," زياد"," زياد","","",null,"",""," زياد","",null,"","",""," زياد",null,"","","",""]
[null,null,null,null,null,null,null,null,null,null,null,null,null,null,null,null,null,null,null,null,null,null,null," خولة"," خولة"," خولة"," خولة",null,"","","","",null,"","","","",null,"","","",""]
[null,null,null,null,null,null,null,null,null,null,null,null,null,null,null,null,null,null,null,null,null,null,null," فرح","",""," فرح",null,""," فرح"," فرح","",null,"","","","",null,"","","",""]
[null,null,null,null,null,null,null,null,null,null,null,null,null,null,null,null,null,null,null,null,null,null,null,"","","","",null,"","","","",null,"","","","",null,"","","",""]
[null,{"$f":"COUNTIF(B9:B45,\"x\")","v":9},0,4,24,8,9,8,12,10,9,9,9,8,10,6,14,{"$f":"COUNTA(T9:T45)","v":37},null,null,"المجموع"]
[null,{"$f":"(B49/$R$49)","v":0.24324324324324326},0,0.10810810810810811,0.64864864864864868,0.21621621621621623,0.24324324324324326,0.21621621621621623,0.32432432432432434,0.27027027027027029,0.24324324324324326,0.24324324324324326,0.24324324324324326,0.21621621621621623,0.27027027027027029,0.16216216216216217,0.3783783783783784,null,null,null,"النسبة المئوية"]